lending/lending_fUSD_20240605
["ID","MTS","AMOUNT","RATE_DAILY","PERIOD"]
[328622902,1717621845130,-383.23988802,0.00029993,4]
[328622903,1717621845139,-625.58702147,0.00029993,4]
[328622905,1717621845148,-502.63429917,0.00029993,4]
[328622906,1717621845157,-500.0,0.00029993,4]
[328622907,1717621845166,-500.0,0.00029993,4]
[328622908,1717621845175,-150.15,0.00029993,4]
[328622909,1717621845184,-500.0,0.00029993,4]
[328622910,1717621845193,-502.65275108,0.00029993,4]
[328622911,1717621845202,-500.0,0.00029993,4]
[328622912,1717621845211,-500.0,0.00029993,4]
[328622913,1717621845220,-510.1138392,0.00029993,4]
[328622914,1717621845229,-500.0,0.00029993,4]
[328622915,1717621845237,-500.0,0.00029993,4]
[328622916,1717621845246,-500.0,0.00029993,4]
[328622917,1717621845255,-302.57,0.00029993,4]
[328622918,1717621845265,-500.0,0.00029993,4]
[328622919,1717621845275,-203.61,0.00029993,4]
[328622920,1717621845284,-500.0,0.00029993,4]
[328622921,1717621845293,-632.34,0.00029993,4]
[328622922,1717621845303,-500.0,0.00029993,4]
[328622923,1717621845312,-549.37,0.00029993,4]
[328622924,1717621845321,-503.09860383,0.00029993,4]
[328622925,1717621845331,-500.0,0.00029993,4]
[328622926,1717621845346,-500.0,0.00029993,4]
[328622927,1717621845355,-500.0,0.00029993,4]
[328622928,1717621845364,-189.2,0.00029993,4]
[328622929,1717621845374,-500.0,0.00029993,4]
[328622930,1717621845385,-642.73,0.00029993,4]
[328622931,1717621845394,-507.07423638,0.00029993,4]
[328622932,1717621845403,-522.42,0.00029993,4]
[328622933,1717621845412,-501.73758458,0.00029993,4]
[328622934,1717621845423,-500.0,0.00029993,4]
[328622935,1717621845432,-605.88,0.00029993,4]
[328622936,1717621845441,-522.01395495,0.00029993,4]
[328622937,1717621845450,-500.0,0.00029993,4]
[328622938,1717621845459,-502.6292723,0.00029993,4]
[328622939,1717621845467,-500.0,0.00029993,4]
[328622940,1717621845477,-500.0,0.00029993,4]
[328622941,1717621845486,-575.12,0.00029993,4]
[328622942,1717621845495,-505.6058119,0.00029993,4]
[328622943,1717621845505,-500.0,0.00029993,4]
[328622944,1717621845515,-500.0,0.00029993,4]
[328622945,1717621845524,-186.23596096,0.00029993,4]
[328622946,1717621845533,-506.51379035,0.00029993,4]
[328622947,1717621845542,-505.4016058,0.00029993,4]
[328622948,1717621845551,-502.40522321,0.00029993,4]
[328622949,1717621845560,-505.13791173,0.00029993,4]
[328622950,1717621845570,-500.0,0.00029993,4]
[328622951,1717621845579,-207.87111766,0.00029993,4]
[328622952,1717621845590,-506.98050584,0.00029993,4]
[328622953,1717621845599,-503.50543796,0.00029993,4]
[328622954,1717621845608,-500.0,0.00029993,4]
[328622955,1717621845617,-517.78,0.00029993,4]
[328622956,1717621845627,-510.06859484,0.00029993,4]
[328622957,1717621845636,-501.3590133,0.00029993,4]
[328622958,1717621845644,-500.0,0.00029993,4]
[328622960,1717621845654,-500.0,0.00029993,4]
[328622962,1717621845663,-508.49629868,0.00029993,4]
[328622963,1717621845672,-500.0,0.00029993,4]
[328622964,1717621845681,-500.0,0.00029993,4]
[328622965,1717621845690,-510.85925196,0.00029993,4]
[328622966,1717621845699,-500.0,0.00029993,4]
[328622967,1717621845708,-504.83493849,0.00029993,4]
[328622969,1717621845718,-500.0,0.00029993,4]
[328622971,1717621845727,-264.58,0.00029993,4]
[328622972,1717621845736,-502.43367256,0.00029993,4]
[328622975,1717621845745,-500.0,0.00029993,4]
[328622978,1717621845755,-396.47,0.00029993,4]
[328622981,1717621845764,-500.0,0.00029993,4]
[328622983,1717621845774,-168.8,0.00029993,4]
[328622984,1717621845783,-551.78,0.00029993,4]
[328622986,1717621845792,-505.99747829,0.00029993,4]
[328622988,1717621845801,-500.0,0.00029993,4]
[328622989,1717621845810,-506.227681,0.00029993,4]
[328622990,1717621845819,-500.0,0.00029993,4]
[328622991,1717621845831,-500.0,0.00029993,4]
[328622992,1717621845844,-505.43325152,0.00029993,4]
[328622993,1717621845854,-500.0,0.00029993,4]
[328622994,1717621845865,-168.65,0.00029993,4]
[328622995,1717621845875,-506.61717856,0.00029993,4]
[328622996,1717621845884,-500.0,0.00029993,4]
[328622997,1717621845893,-500.0,0.00029993,4]
[328622998,1717621845902,-500.0,0.00029993,4]
[328623000,1717621845911,-500.0,0.00029993,4]
[328623001,1717621845920,-506.74503543,0.00029993,4]
[328623002,1717621845930,-500.0,0.00029993,4]
[328623003,1717621845939,-503.86068928,0.00029993,4]
[328623004,1717621845948,-503.76596892,0.00029993,4]
[328623005,1717621845957,-500.0,0.00029993,4]
[328623006,1717621845967,-500.0,0.00029993,4]
[328623007,1717621845976,-500.0,0.00029993,4]
[328623008,1717621845985,-500.0,0.00029993,4]
[328623009,1717621845994,-500.0,0.00029993,4]
[328623010,1717621846003,-502.98110662,0.00029993,14]
[328623011,1717621846013,-500.0,0.00029993,4]
[328623012,1717621846023,-500.0,0.00029993,4]
[328623013,1717621846032,-500.0,0.00029993,4]
[328623014,1717621846041,-505.72300969,0.00029993,4]
[328623015,1717621846050,-500.0,0.00029993,4]
[328623016,1717621846059,-509.30281615,0.00029993,4]
[328623017,1717621846069,-502.63469732,0.00029993,4]
[328623018,1717621846078,-500.0,0.00029993,4]
[328623019,1717621846089,-506.3762556,0.00029993,4]
[328623020,1717621846099,-467.21808408,0.00029993,4]
[328623021,1717621846109,-500.0,0.00029993,4]
[328623022,1717621846118,-500.0,0.00029993,4]
[328623023,1717621846229,-500.0,0.00029993,4]
[328623024,1717621846254,-566.39,0.00029993,4]
[328623025,1717621846263,-505.47427505,0.00029993,4]
[328623026,1717621846273,-628.66,0.00029993,4]
[328623027,1717621846282,-500.0,0.00029993,4]
[328623028,1717621846292,-500.0,0.00029993,4]
[328623029,1717621846302,-500.0,0.00029993,4]
[328623030,1717621846311,-500.0,0.00029993,4]
[328623031,1717621846321,-500.0,0.00029993,4]
[328623032,1717621846331,-505.66376604,0.00029993,4]
[328623033,1717621846343,-641.72,0.00029993,4]
[328623034,1717621846356,-500.0,0.00029993,4]
[328623035,1717621846366,-500.0,0.00029993,4]
[328623036,1717621846375,-452.46,0.00029993,4]
[328623037,1717621846385,-184.37083087,0.00029993,4]
[328623038,1717621846396,-500.0,0.00029993,4]
[328623040,1717621846406,-505.25924408,0.00029993,4]
[328623042,1717621846415,-500.0,0.00029993,4]
[328623044,1717621846425,-521.00844628,0.00029993,4]
[328623045,1717621846434,-500.0,0.00029993,4]
[328623046,1717621846444,-500.0,0.00029993,4]
[328623047,1717621846453,-307.43,0.00029993,4]
[328623048,1717621846463,-500.0,0.00029993,4]
[328623049,1717621846472,-528.98,0.00029993,4]
[328623050,1717621846481,-594.18,0.00029993,4]
[328623051,1717621846490,-500.0,0.00029993,4]
[328623052,1717621846500,-500.0,0.00029993,4]
[328623053,1717621846510,-502.90170135,0.00029993,4]
[328623054,1717621846519,-500.0,0.00029993,4]
[328623055,1717621846529,-500.0,0.00029993,4]
[328623056,1717621846539,-503.21281511,0.00029993,4]
[328623057,1717621846549,-506.65306124,0.00029993,4]
[328623058,1717621846558,-500.0,0.00029993,4]
[328623059,1717621846568,-500.0,0.00029993,4]
[328623060,1717621846577,-509.23,0.00029993,4]
[328623061,1717621846588,-503.19602722,0.00029993,4]
[328623062,1717621846597,-509.27221707,0.00029993,4]
[328623063,1717621846605,-502.14143962,0.00029993,4]
[328623064,1717621846614,-500.0,0.00029993,4]
[328623065,1717621846623,-500.0,0.00029993,4]
[328623066,1717621846632,-271.56326864,0.00029993,4]
[328623067,1717621846641,-500.0,0.00029993,4]
[328623068,1717621846650,-503.94012278,0.00029993,4]
[328623069,1717621846659,-500.0,0.00029993,4]
[328623070,1717621846669,-498.41,0.00029993,4]
[328623071,1717621846679,-500.0,0.00029993,4]
[328623072,1717621846688,-617.01,0.00029993,4]
[328623073,1717621846697,-500.0,0.00029993,4]
[328623074,1717621846707,-500.0,0.00029993,4]
[328623075,1717621846717,-411.53,0.00029993,4]
[328623076,1717621846727,-500.0,0.00029993,4]
[328623077,1717621846736,-500.0,0.00029993,4]
[328623078,1717621846746,-263.87,0.00029993,4]
[328623079,1717621846755,-500.0,0.00029993,4]
[328623080,1717621846765,-500.0,0.00029993,4]
[328623081,1717621846774,-500.0,0.00029993,4]
[328623082,1717621846784,-500.0,0.00029993,4]
[328623083,1717621846794,-509.73436213,0.00029993,4]
[328623084,1717621846802,-500.0,0.00029993,4]
[328623085,1717621846812,-248.38,0.00029993,4]
[328623086,1717621846822,-500.0,0.00029993,4]
[328623087,1717621846831,-500.0,0.00029993,4]
[328623088,1717621846842,-343.05,0.00029993,4]
[328623089,1717621846851,-440.55570586,0.00029993,4]
[328623090,1717621846860,-500.0,0.00029993,4]
[328623091,1717621846869,-500.0,0.00029993,4]
[328623092,1717621846878,-500.0,0.00029993,4]
[328623093,1717621846887,-606.57496578,0.00029993,4]
[328623094,1717621846896,-500.0,0.00029993,4]
[328623095,1717621846906,-500.0,0.00029993,4]
[328623096,1717621846915,-500.0,0.00029993,4]
[328623097,1717621846925,-500.0,0.00029993,4]
[328623098,1717621846934,-500.0,0.00029993,4]
[328623099,1717621846944,-430.74,0.00029993,4]
[328623100,1717621846953,-500.0,0.00029993,4]
[328623101,1717621846962,-500.0,0.00029993,4]
[328623102,1717621846971,-500.0,0.00029993,4]
[328623103,1717621846981,-504.62567303,0.00029993,4]
[328623104,1717621846990,-563.66,0.00029993,4]
[328623105,1717621847000,-500.0,0.00029993,4]
[328623106,1717621847009,-500.0,0.00029993,4]
[328623107,1717621847019,-500.0,0.00029993,4]
[328623108,1717621847028,-221.03,0.00029993,4]
[328623109,1717621847037,-500.0,0.00029993,4]
[328623110,1717621847047,-150.65,0.00029993,4]
[328623111,1717621847056,-500.0,0.00029993,4]
[328623112,1717621847065,-500.0,0.00029993,4]
[328623113,1717621847074,-594.66,0.00029993,4]
[328623114,1717621847084,-500.0,0.00029993,4]
[328623115,1717621847093,-500.0,0.00029993,4]
[328623116,1717621847102,-500.0,0.00029993,4]
[328623117,1717621847111,-500.0,0.00029993,4]
[328623118,1717621847120,-191.7,0.00029993,4]
[328623119,1717621847129,-500.0,0.00029993,4]
[328623120,1717621847139,-500.0,0.00029993,4]
[328623121,1717621847148,-500.0,0.00029993,4]
[328623122,1717621847158,-500.0,0.00029993,4]
[328623123,1717621847166,-500.0,0.00029993,4]
[328623124,1717621847176,-500.0,0.00029993,4]
[328623125,1717621847185,-500.0,0.00029993,4]
[328623126,1717621847194,-500.0,0.00029993,4]
[328623127,1717621847203,-600.72,0.00029993,4]
[328623128,1717621847212,-500.0,0.00029993,4]
[328623129,1717621847222,-500.0,0.00029993,4]
[328623130,1717621847231,-500.0,0.00029993,4]
[328623131,1717621847241,-500.0,0.00029993,4]
[328623132,1717621847250,-500.0,0.00029993,4]
[328623133,1717621847258,-500.0,0.00029993,4]
[328623134,1717621847268,-500.0,0.00029993,4]
[328623135,1717621847277,-406.96,0.00029993,4]
[328623136,1717621847287,-500.0,0.00029993,4]
[328623137,1717621847296,-500.0,0.00029993,4]
[328623138,1717621847305,-319.0,0.00029993,4]
[328623139,1717621847315,-574.97,0.00029993,4]
[328623140,1717621847324,-500.0,0.00029993,4]
[328623141,1717621847334,-500.0,0.00029993,4]
[328623142,1717621847347,-500.0,0.00029993,4]
[328623143,1717621847356,-500.0,0.00029993,4]
[328623144,1717621847366,-506.46048059,0.00029993,4]
[328623145,1717621847375,-500.0,0.00029993,4]
[328623146,1717621847387,-500.0,0.00029993,4]
[328623147,1717621847397,-540.14,0.00029993,4]
[328623148,1717621847406,-500.0,0.00029993,4]
[328623149,1717621847416,-500.0,0.00029993,4]
[328623150,1717621847425,-502.11,0.00029993,4]
[328623151,1717621847435,-500.0,0.00029993,4]
[328623152,1717621847443,-500.0,0.00029993,4]
[328623153,1717621847453,-562.76,0.00029993,4]
[328623154,1717621847462,-500.0,0.00029993,4]
[328623155,1717621847471,-640.21,0.00029993,4]
[328623156,1717621847479,-500.0,0.00029993,4]
[328623157,1717621847491,-371.87733207,0.00029993,4]
[328623158,1717621847500,-500.0,0.00029993,4]
[328623159,1717621847510,-607.74,0.00029993,4]
[328623160,1717621847518,-500.0,0.00029993,4]
[328623161,1717621847528,-500.0,0.00029993,4]
[328623162,1717621847537,-500.0,0.00029993,4]
[328623163,1717621847547,-506.06676663,0.00029993,4]
[328623164,1717621847556,-501.42380767,0.00029993,4]
[328623165,1717621847565,-505.96008689,0.00029993,4]
[328623166,1717621847574,-502.2051351,0.00029993,4]
[328623167,1717621847583,-500.0,0.00029993,4]
[328623168,1717621847592,-500.0,0.00029993,4]
[328623169,1717621847601,-500.0,0.00029993,4]
[328623170,1717621847611,-166.55443567,0.00029993,4]
[328623171,1717621847621,-500.0,0.00029993,4]
[328623172,1717621847631,-500.0,0.00029993,4]
[328623173,1717621847641,-500.0,0.00029993,4]
[328623174,1717621847650,-500.0,0.00029993,4]
[328623175,1717621847659,-500.0,0.00029993,4]
[328623176,1717621847668,-500.0,0.00029993,4]
[328623177,1717621847677,-500.0,0.00029993,4]
[328623178,1717621847686,-500.0,0.00029993,4]
[328623179,1717621847695,-512.95,0.00029993,4]
[328623180,1717621847704,-500.0,0.00029993,4]
[328623181,1717621847713,-502.51140769,0.00029993,4]
[328623182,1717621847722,-500.0,0.00029993,4]
[328623183,1717621847731,-438.76,0.00029993,4]
[328623184,1717621847740,-500.0,0.00029993,4]
[328623185,1717621847749,-353.14635544,0.00029993,4]
[328623186,1717621847758,-500.0,0.00029993,4]
[328623187,1717621847767,-506.18582017,0.00029993,4]
[328623188,1717621847776,-500.0,0.00029993,4]
[328623189,1717621847787,-606.07,0.00029993,4]
[328623190,1717621847797,-490.37369179,0.00029993,4]
[328623191,1717621847806,-500.0,0.00029993,4]
[328623192,1717621847816,-375.68,0.00029993,4]
[328623193,1717621847826,-503.61778656,0.00029993,4]
[328623194,1717621847836,-500.0,0.00029993,4]
[328623195,1717621847846,-508.98,0.00029993,4]
[328623196,1717621847856,-500.0,0.00029993,4]
[328623197,1717621847865,-508.09451824,0.00029993,4]
[328623198,1717621847874,-500.0,0.00029993,4]
[328623199,1717621847883,-500.0,0.00029993,4]
[328623200,1717621847892,-576.21,0.00029993,4]
[328623201,1717621847902,-500.0,0.00029993,4]
[328623202,1717621847911,-500.0,0.00029993,4]
[328623203,1717621847920,-508.45245888,0.00029993,4]
[328623204,1717621847930,-500.0,0.00029993,4]
[328623205,1717621847939,-500.0,0.00029993,4]
[328623206,1717621847948,-500.0,0.00029993,4]
[328623207,1717621847956,-500.0,0.00029993,4]
[328623208,1717621847966,-408.72,0.00029993,4]
[328623209,1717621847975,-500.0,0.00029993,4]
[328623210,1717621847985,-500.0,0.00029993,4]
[328623211,1717621847994,-512.53,0.00029993,4]
[328623212,1717621848004,-500.0,0.00029993,4]
[328623213,1717621848013,-503.71129896,0.00029993,4]
[328623214,1717621848023,-533.34,0.00029993,4]
[328623215,1717621848032,-500.0,0.00029993,4]
[328623216,1717621848041,-204.86,0.00029993,4]
[328623217,1717621848050,-500.0,0.00029993,4]
[328623218,1717621848059,-500.0,0.00029993,4]
[328623219,1717621848068,-262.61021091,0.00029993,4]
[328623220,1717621848078,-500.0,0.00029993,4]
[328623221,1717621848087,-500.0,0.00029993,4]
[328623222,1717621848097,-624.09,0.00029993,4]
[328623223,1717621848106,-400.43065873,0.00029993,4]
[328623224,1717621848115,-500.0,0.00029993,4]
[328623225,1717621848124,-500.0,0.00029993,4]
[328623226,1717621848133,-564.28506565,0.00029993,4]
[328623227,1717621848142,-500.0,0.00029993,4]
[328623228,1717621848151,-500.0,0.00029993,4]
[328623229,1717621848161,-374.80220893,0.00029993,4]
[328623230,1717621848170,-500.0,0.00029993,4]
[328623231,1717621848179,-155.0,0.00029995,2]
[328623232,1717621848188,-174.72,0.00029995,4]
[328623233,1717621848197,-528.72723022,0.00029995,4]
[328623234,1717621848206,-239.66,0.00029995,4]
[328623235,1717621848215,-442.21437903,0.00029995,4]
[328623236,1717621848224,-152.74,0.00029995,4]
[328623237,1717621848234,-261.88,0.00029995,4]
[328623238,1717621848243,-337.97,0.00029995,4]
[328623239,1717621848252,-376.63,0.00029995,4]
[328623240,1717621848261,-151.85,0.00029995,4]
[328623241,1717621848270,-465.78,0.00029995,2]
[328623242,1717621848279,-220.84,0.00029995,4]
[328623243,1717621848288,-393.65,0.00029995,4]
[328623244,1717621848297,-288.48,0.00029995,4]
[328623245,1717621848307,-388.23,0.00029995,4]
[328623246,1717621848316,-164.9,0.00029995,4]
[328623247,1717621848325,-177.95,0.00029995,4]
[328623248,1717621848335,-351.7,0.00029995,4]
[328623249,1717621848349,-182.29,0.00029995,4]
[328623250,1717621848359,-172.94978309,0.00029995,4]
[328623251,1717621848368,-259.37,0.00029995,4]
[328623252,1717621848378,-156.41,0.00029995,4]
[328623253,1717621848389,-161.3,0.00029995,4]
[328623254,1717621848398,-243.18,0.00029995,4]
[328623255,1717621848408,-279.2,0.00029995,4]
[328623256,1717621848418,-496.48,0.00029995,4]
[328623257,1717621848427,-219.85,0.00029996,4]
[328623258,1717621848436,-201.23,0.00029996,4]
[328623259,1717621848445,-442.22,0.00029996,4]
[328623260,1717621848454,-331.45,0.00029996,4]
[328623261,1717621848463,-309.23,0.00029996,4]
[328623262,1717621848472,-427.98,0.00029996,4]
[328623263,1717621848481,-182.65,0.00029996,4]
[328623264,1717621848491,-384.3,0.00029996,4]
[328623265,1717621848501,-500.0,0.00029996,4]
[328623266,1717621848509,-252.46,0.00029996,4]
[328623267,1717621848518,-500.0,0.00029996,4]
[328623268,1717621848529,-500.0,0.00029996,4]
[328623269,1717621848538,-500.0,0.00029996,4]
[328623270,1717621848547,-520.58,0.00029996,4]
[328623271,1717621848557,-538.58,0.00029996,4]
[328623272,1717621848566,-500.0,0.00029996,4]
[328623273,1717621848576,-500.0,0.00029996,4]
[328623274,1717621848586,-500.0,0.00029996,4]
[328623275,1717621848595,-500.0,0.00029996,4]
[328623276,1717621848604,-500.0,0.00029996,4]
[328623277,1717621848613,-500.0,0.00029996,4]
[328623278,1717621848625,-500.0,0.00029996,4]
[328623279,1717621848636,-500.0,0.00029996,4]
[328623280,1717621848736,-500.0,0.00029996,4]
[328623281,1717621848758,-500.0,0.00029996,4]
[328623282,1717621848768,-500.0,0.00029996,4]
[328623283,1717621848779,-1688.59,0.00029996,4]
[328623284,1717621848789,-500.0,0.00029996,4]
[328623285,1717621848799,-500.0,0.00029996,4]
[328623286,1717621848810,-500.0,0.00029996,4]
[328623287,1717621848820,-500.0,0.00029996,4]
[328623288,1717621848831,-500.0,0.00029996,4]
[328623289,1717621848840,-500.0,0.00029996,4]
[328623290,1717621848849,-500.0,0.00029996,4]
[328623291,1717621848860,-500.0,0.00029996,4]
[328623292,1717621848870,-500.0,0.00029996,4]
[328623293,1717621848880,-441.76,0.00029996,4]
[328623294,1717621848889,-821.44,0.00029996,4]
[328623295,1717621848898,-500.0,0.00029996,4]
[328623296,1717621848907,-376.8,0.00029996,4]
[328623297,1717621848917,-193.71,0.00029996,4]
[328623298,1717621848926,-500.0,0.00029996,4]
[328623299,1717621848935,-500.0,0.00029996,4]
[328623300,1717621848945,-500.0,0.00029997,4]
[328623301,1717621848956,-252.64,0.00029997,4]
[328623302,1717621848966,-500.0,0.00029997,4]
[328623303,1717621848975,-527.05,0.00029997,4]
[328623304,1717621848984,-500.0,0.00029997,4]
[328623305,1717621848994,-500.0,0.00029997,4]
[328623306,1717621849004,-500.0,0.00029997,4]
[328623307,1717621849013,-500.0,0.00029997,4]
[328623308,1717621849023,-500.0,0.00029997,4]
[328623309,1717621849032,-158.07,0.00029997,4]
[328623310,1717621849042,-500.0,0.00029997,4]
[328623311,1717621849051,-500.0,0.00029997,4]
[328623312,1717621849061,-532.49,0.00029997,4]
[328623313,1717621849070,-500.0,0.00029997,4]
[328623314,1717621849079,-500.0,0.00029997,4]
[328623315,1717621849089,-500.0,0.00029997,4]
[328623316,1717621849099,-610.24,0.00029997,4]
[328623317,1717621849108,-500.0,0.00029997,4]
[328623318,1717621849117,-500.0,0.00029997,4]
[328623319,1717621849127,-500.0,0.00029997,4]
[328623320,1717621849137,-500.0,0.00029997,4]
[328623321,1717621849146,-500.0,0.00029997,4]
[328623322,1717621849156,-500.32,0.00029997,4]
[328623323,1717621849165,-500.0,0.00029997,4]
[328623324,1717621849175,-500.0,0.00029997,4]
[328623325,1717621849184,-500.0,0.00029997,4]
[328623326,1717621849193,-633.92,0.00029997,4]
[328623327,1717621849202,-500.0,0.00029997,4]
[328623328,1717621849211,-500.0,0.00029997,4]
[328623329,1717621849221,-500.0,0.00029997,4]
[328623330,1717621849230,-500.0,0.00029997,4]
[328623331,1717621849240,-500.0,0.00029997,4]
[328623332,1717621849249,-500.0,0.00029997,4]
[328623333,1717621849258,-500.0,0.00029997,4]
[328623334,1717621849268,-597.87,0.00029997,4]
[328623335,1717621849277,-500.0,0.00029997,4]
[328623336,1717621849287,-500.0,0.00029997,4]
[328623337,1717621849296,-603.04,0.00029997,4]
[328623338,1717621849306,-500.0,0.00029997,4]
[328623339,1717621849315,-577.81,0.00029997,4]
[328623340,1717621849324,-500.0,0.00029997,4]
[328623341,1717621849335,-500.0,0.00029997,4]
[328623342,1717621849348,-500.0,0.00029997,4]
[328623343,1717621849357,-500.0,0.00029997,4]
[328623344,1717621849367,-500.0,0.00029997,4]
[328623345,1717621849376,-500.0,0.00029997,4]
[328623346,1717621849387,-500.0,0.00029997,4]
[328623347,1717621849396,-515.17,0.00029997,4]
[328623348,1717621849405,-500.0,0.00029997,4]
[328623349,1717621849415,-544.0,0.00029997,4]
[328623350,1717621849425,-500.0,0.00029997,4]
[328623351,1717621849435,-500.0,0.00029997,4]
[328623352,1717621849445,-571.25,0.00029997,4]
[328623353,1717621849454,-633.96420361,0.00029997,4]
[328623354,1717621849464,-500.0,0.00029997,4]
[328623355,1717621849473,-500.0,0.00029997,4]
[328623356,1717621849483,-500.0,0.00029997,4]
[328623357,1717621849492,-347.01,0.00029997,4]
[328623358,1717621849502,-500.0,0.00029997,4]
[328623359,1717621849511,-500.0,0.00029997,4]
[328623360,1717621849520,-500.0,0.00029997,4]
[328623361,1717621849530,-500.0,0.00029997,4]
[328623362,1717621849539,-508.31910115,0.00029997,4]
[328623363,1717621849548,-500.0,0.00029997,4]
[328623364,1717621849557,-500.0,0.00029997,4]
[328623365,1717621849567,-500.0,0.00029997,4]
[328623366,1717621849576,-196.8,0.00029997,4]
[328623367,1717621849586,-500.0,0.00029997,4]
[328623368,1717621849595,-500.0,0.00029997,4]
[328623369,1717621849604,-189.49,0.00029997,4]
[328623370,1717621849613,-527.53,0.00029997,4]
[328623371,1717621849622,-500.0,0.00029997,4]
[328623372,1717621849631,-533.67,0.00029997,4]
[328623373,1717621849641,-500.0,0.00029997,4]
[328623374,1717621849650,-500.0,0.00029997,4]
[328623375,1717621849660,-500.0,0.00029997,4]
[328623376,1717621849668,-511.17612436,0.00029997,4]
[328623377,1717621849677,-500.0,0.00029997,4]
[328623378,1717621849686,-500.0,0.00029997,4]
[328623379,1717621849695,-500.0,0.00029997,4]
[328623380,1717621849704,-500.0,0.00029997,4]
[328623381,1717621849713,-500.0,0.00029997,4]
[328623382,1717621849722,-557.21,0.00029997,4]
[328623383,1717621849731,-597.52,0.00029997,4]
[328623384,1717621849740,-500.0,0.00029997,4]
[328623385,1717621849749,-500.0,0.00029997,4]
[328623386,1717621849758,-500.0,0.00029997,4]
[328623387,1717621849767,-500.0,0.00029997,4]
[328623388,1717621849776,-500.0,0.00029997,4]
[328623389,1717621849785,-265.66,0.00029997,4]
[328623390,1717621849794,-500.0,0.00029997,4]
[328623391,1717621849803,-331.46,0.00029997,4]
[328623392,1717621849813,-500.0,0.00029997,4]
[328623393,1717621849822,-341.27,0.00029997,4]
[328623394,1717621849831,-500.0,0.00029997,4]
[328623395,1717621849841,-311.09,0.00029997,4]
[328623396,1717621849852,-623.0,0.00029997,4]
[328623397,1717621849861,-500.0,0.00029997,4]
[328623398,1717621849869,-555.66,0.00029997,4]
[328623399,1717621849879,-500.0,0.00029997,4]
[328623400,1717621849892,-500.0,0.00029997,4]
[328623401,1717621849902,-500.0,0.00029997,4]
[328623402,1717621849918,-500.0,0.00029997,4]
[328623403,1717621849928,-500.0,0.00029997,4]
[328623404,1717621849937,-500.0,0.00029997,4]
[328623405,1717621849947,-500.0,0.00029997,4]
[328623406,1717621849957,-500.0,0.00029997,4]
[328623407,1717621849967,-514.99496155,0.00029997,4]
[328623408,1717621849976,-500.0,0.00029997,4]
[328623409,1717621849987,-500.0,0.00029997,4]
[328623410,1717621850007,-483.34,0.00029997,4]
[328623411,1717621850016,-269.26,0.00029997,4]
[328623412,1717621850025,-500.0,0.00029997,4]
[328623413,1717621850034,-500.0,0.00029997,4]
[328623414,1717621850043,-500.0,0.00029997,4]
[328623415,1717621850054,-500.0,0.00029997,4]
[328623416,1717621850063,-500.0,0.00029997,4]
[328623417,1717621850072,-500.0,0.00029997,4]
[328623418,1717621850081,-419.81,0.00029997,4]
[328623419,1717621850091,-506.71071938,0.00029997,4]